fUSD/lending_fUSD_20241123
["ID","MTS","AMOUNT","RATE_DAILY","PERIOD"]
[343161905,1732389092254,-500.0,0.00055769,120]
[343161906,1732389092269,-500.0,0.00055769,120]
[343161907,1732389092285,-500.0,0.00055769,120]
[343161908,1732389092299,-500.0,0.00055769,120]
[343161909,1732389092314,-202.23331312,0.00055769,120]
[343161910,1732389092329,-500.0,0.00055769,120]
[343161911,1732389092343,-181.30411956,0.00055769,120]
[343161912,1732389092359,-500.0,0.00055769,120]
[343161913,1732389092373,-500.0,0.00055769,120]
[343161914,1732389092388,-500.0,0.00055769,120]
[343161915,1732389092403,-500.0,0.00055769,120]
[343161916,1732389092418,-500.0,0.00055769,120]
[343161917,1732389092433,-500.0,0.00055769,120]
[343161918,1732389092447,-500.0,0.00055769,120]
[343161919,1732389092463,-500.0,0.00055769,120]
[343161920,1732389092477,-252.53062024,0.00055769,120]
[343161921,1732389092491,-656.31,0.00055769,120]
[343161922,1732389092506,-656.31,0.00055769,120]
[343161923,1732389092520,-500.0,0.00055769,120]
[343161924,1732389092534,-500.0,0.00055769,120]
[343161925,1732389092549,-151.0,0.00055769,120]
[343161926,1732389092564,-151.0,0.00055769,120]
[343161927,1732389092578,-151.0,0.00055769,120]
[343161928,1732389092593,-168.0,0.00055769,120]
[343161929,1732389092607,-168.0,0.00055769,120]
[343161930,1732389092622,-353.16,0.00055769,120]
[343161931,1732389092638,-577.44,0.00055769,120]
[343161932,1732389092652,-577.44,0.00055769,120]
[343161933,1732389092668,-211.36691515,0.00055769,120]
[343161934,1732389092683,-500.0,0.00055769,120]
[343161935,1732389092698,-500.0,0.00055769,120]
[343161936,1732389092713,-609.3,0.00055769,120]
[343161937,1732389092728,-609.3,0.00055769,120]
[343161938,1732389092743,-250.41875415,0.00055769,120]
[343161939,1732389092759,-151.0,0.00055769,120]
[343161940,1732389092775,-500.0,0.00055769,120]
[343161941,1732389092790,-500.0,0.00055769,120]
[343161942,1732389092804,-1324.03,0.00055769,120]
[343161943,1732389092819,-1324.03,0.00055769,120]
[343161944,1732389092833,-1200.79,0.00055769,120]
[343161945,1732389092847,-1200.79,0.00055769,120]
[343161946,1732389092862,-151.0,0.00055769,120]
[343161947,1732389092880,-500.0,0.00055769,120]
[343161948,1732389092895,-279.81,0.00055769,120]
[343161949,1732389092911,-813.605447,0.00055769,120]
[343161950,1732389092926,-583.25,0.00055769,120]
[343161951,1732389092940,-332.281826,0.00055769,120]
[343161952,1732389092956,-813.605447,0.00055769,120]
[343161953,1732389092970,-332.281826,0.00055769,120]
[343161954,1732389092985,-500.0,0.00055769,120]
[343161955,1732389093004,-500.0,0.00055769,120]
[343161956,1732389093018,-500.0,0.00055769,120]
[343161957,1732389093033,-500.0,0.00055769,120]
[343161958,1732389093049,-500.0,0.00055769,120]
[343161959,1732389093065,-348.29209227,0.00055769,120]
[343161960,1732389093082,-215.39622971,0.00055769,120]
[343161961,1732389093097,-1803.76,0.00055769,120]
[343161962,1732389093290,-1803.76,0.00055769,120]
[343161963,1732389093302,-1486.62,0.00055769,120]
[343161964,1732389093312,-1486.62,0.00055769,120]
[343161965,1732389093321,-500.0,0.00055769,120]
[343161966,1732389093331,-601.39,0.00055769,120]
[343161967,1732389093341,-500.0,0.00055769,120]
[343161968,1732389093351,-529.379999,0.00055769,120]
[343161969,1732389093361,-1278.68,0.00055769,120]
[343161970,1732389093371,-1278.68,0.00055769,120]
[343161971,1732389093381,-500.0,0.00055769,120]
[343161972,1732389093391,-500.0,0.00055769,120]
[343161973,1732389093401,-1227.87,0.00055769,120]
[343161974,1732389093414,-1227.87,0.00055769,120]
[343161975,1732389093424,-1339.52,0.00055769,120]
[343161976,1732389093433,-1339.52,0.00055769,120]
[343161977,1732389093443,-500.0,0.00055769,120]
[343161978,1732389093453,-500.0,0.00055769,120]
[343161979,1732389093462,-500.0,0.00055769,120]
[343161980,1732389093472,-500.0,0.00055769,120]
[343161981,1732389093482,-500.0,0.00055769,120]
[343161982,1732389093491,-1572.78,0.00055769,120]
[343161983,1732389093501,-1572.78,0.00055769,120]
[343161984,1732389093511,-1572.78,0.00055769,120]
[343161985,1732389093520,-485.14,0.00055769,7]
[343161986,1732389093530,-500.0,0.00055769,54]
[343161987,1732389093539,-500.0,0.00055769,54]
[343161988,1732389093548,-1360.17,0.00055769,120]
[343161989,1732389093558,-500.0,0.00055769,120]
[343161990,1732389093567,-1360.17,0.00055769,120]
[343161991,1732389093576,-938.06,0.00055769,120]
[343161992,1732389093586,-938.06,0.00055769,120]
[343161993,1732389093596,-938.06,0.00055769,120]
[343161994,1732389093605,-500.0,0.00055769,120]
[343161995,1732389093615,-500.0,0.00055769,120]
[343161996,1732389093625,-500.0,0.00055769,120]
[343161997,1732389093634,-504.66,0.00055769,120]
[343161998,1732389093643,-504.66,0.00055769,120]
[343161999,1732389093652,-504.66,0.00055769,120]
[343162000,1732389093663,-500.0,0.00055769,120]
[343162001,1732389093673,-500.0,0.00055769,120]
[343162002,1732389093682,-500.0,0.00055769,120]
[343162003,1732389093692,-500.0,0.00055769,120]
[343162004,1732389093702,-500.0,0.00055769,120]
[343162005,1732389093711,-500.0,0.00055769,120]
[343162006,1732389093720,-500.0,0.00055769,120]
[343162007,1732389093730,-500.0,0.00055769,120]
[343162008,1732389093739,-500.0,0.00055769,21]
[343162009,1732389093748,-500.0,0.00055769,21]
[343162010,1732389093758,-500.0,0.00055769,21]
[343162011,1732389093767,-500.0,0.00055769,120]
[343162012,1732389093777,-500.0,0.00055769,120]
[343162013,1732389093787,-500.0,0.00055769,120]
[343162014,1732389093797,-500.0,0.00055769,120]
[343162015,1732389093807,-500.0,0.00055769,120]
[343162016,1732389093817,-500.0,0.00055769,120]
[343162017,1732389093826,-153.705631,0.00055769,120]
[343162018,1732389093836,-153.705631,0.00055769,120]
[343162019,1732389093846,-503.12,0.00055769,120]
[343162020,1732389093856,-153.705631,0.00055769,120]
[343162021,1732389093866,-503.12,0.00055769,120]
[343162022,1732389093876,-503.12,0.00055769,120]
[343162023,1732389093886,-500.0,0.00055769,120]
[343162024,1732389093896,-441.44,0.00055769,120]
[343162025,1732389093907,-762.84,0.00055769,120]
[343162026,1732389093917,-762.84,0.00055769,120]
[343162027,1732389093927,-1009.83,0.00055769,120]
[343162028,1732389093937,-1009.83,0.00055769,120]
[343162029,1732389093946,-500.0,0.00055769,120]
[343162030,1732389093957,-500.0,0.00055769,120]
[343162031,1732389093966,-500.0,0.00055769,120]
[343162032,1732389093976,-500.0,0.00055769,120]
[343162033,1732389093992,-232.51,0.00055769,120]
[343162034,1732389094002,-500.0,0.00055769,120]
[343162035,1732389094011,-500.0,0.00055769,120]
[343162036,1732389094021,-286.91,0.00055769,120]
[343162037,1732389094032,-500.0,0.00055769,120]
[343162038,1732389094042,-500.0,0.00055769,120]
[343162039,1732389094052,-500.0,0.00055769,120]
[343162040,1732389094062,-500.0,0.00055769,120]
[343162041,1732389094071,-500.0,0.00055769,120]
[343162042,1732389094080,-500.0,0.00055769,120]
[343162043,1732389094090,-500.0,0.00055769,120]
[343162044,1732389094099,-552.39,0.00055769,120]
[343162045,1732389094108,-500.0,0.00055769,120]
[343162046,1732389094118,-177.33008533,0.00055769,120]
[343162047,1732389094127,-500.0,0.00055769,120]
[343162048,1732389094137,-500.0,0.00055769,120]
[343162049,1732389094148,-836.17,0.00055769,120]
[343162050,1732389094160,-836.17,0.00055769,120]
[343162051,1732389094170,-500.0,0.00055769,120]
[343162052,1732389094180,-370.61,0.00055769,120]
[343162053,1732389094189,-500.0,0.00055769,120]
[343162054,1732389094199,-500.0,0.00055769,120]
[343162055,1732389094209,-1293.77,0.00055769,120]
[343162056,1732389094218,-1293.77,0.00055769,120]
[343162057,1732389094228,-500.0,0.00055769,120]
[343162058,1732389094238,-523.47484405,0.00055769,120]
[343162059,1732389094248,-500.0,0.00055769,120]
[343162060,1732389094258,-500.0,0.00055769,120]
[343162061,1732389094268,-781.19,0.00055769,120]
[343162062,1732389094277,-781.19,0.00055769,120]
[343162063,1732389094287,-781.19,0.00055769,120]
[343162064,1732389094296,-500.0,0.00055769,120]
[343162065,1732389094305,-500.0,0.00055769,120]
[343162066,1732389094316,-1494.48,0.00055769,120]
[343162067,1732389094326,-1494.48,0.00055769,120]
[343162068,1732389094336,-1494.48,0.00055769,120]
[343162069,1732389094346,-500.0,0.00055769,120]
[343162070,1732389094356,-414.9,0.00055769,120]
[343162071,1732389094367,-500.0,0.00055769,120]
[343162072,1732389094377,-500.0,0.00055769,120]
[343162073,1732389094386,-500.0,0.00055769,120]
[343162074,1732389094396,-500.0,0.00055769,120]
[343162075,1732389094407,-500.0,0.00055769,120]
[343162076,1732389094417,-500.0,0.00055769,30]
[343162077,1732389094427,-500.0,0.00055769,30]
[343162078,1732389094437,-500.0,0.00055769,120]
[343162079,1732389094446,-500.0,0.00055769,120]
[343162080,1732389094456,-687.21,0.00055769,120]
[343162081,1732389094466,-687.21,0.00055769,120]
[343162082,1732389094476,-687.21,0.00055769,120]
[343162083,1732389094485,-500.0,0.00055769,120]
[343162084,1732389094495,-500.0,0.00055769,120]
[343162085,1732389094505,-500.0,0.00055769,120]
[343162086,1732389094515,-500.0,0.00055769,120]
[343162087,1732389094525,-500.0,0.00055769,120]
[343162088,1732389094535,-500.0,0.00055769,120]
[343162089,1732389094544,-500.0,0.00055769,120]
[343162090,1732389094554,-500.0,0.00055769,120]
[343162091,1732389094563,-500.0,0.00055769,120]
[343162092,1732389094573,-500.0,0.00055769,120]
[343162093,1732389094582,-500.0,0.00055769,120]
[343162094,1732389094593,-500.0,0.00055769,120]
[343162095,1732389094603,-500.0,0.00055769,120]
[343162096,1732389094612,-500.0,0.00055769,120]
[343162097,1732389094622,-500.0,0.00055769,120]
[343162098,1732389094631,-500.0,0.00055769,120]
[343162099,1732389094641,-500.0,0.00055769,120]
[343162100,1732389094650,-2000.0,0.0005577,15]
[343162101,1732389094660,-200.0,0.0005577,15]
[343162102,1732389094670,-467.445494,0.0005577,120]
[343162103,1732389094679,-467.445494,0.0005577,120]
[343162104,1732389094689,-151.0,0.0005577,120]
[343162105,1732389094699,-151.0,0.0005577,120]
[343162106,1732389094708,-169.15571,0.0005577,120]
[343162107,1732389094718,-169.15571,0.0005577,120]
[343162108,1732389094728,-151.0,0.0005577,120]
[343162109,1732389094738,-151.0,0.0005577,120]
[343162110,1732389094747,-151.0,0.0005577,120]
[343162111,1732389094758,-151.0,0.0005577,120]
[343162112,1732389094768,-1000.0,0.0005577,2]
[343162113,1732389094778,-1000.0,0.0005577,2]
[343162114,1732389094788,-1000.0,0.0005577,2]
[343162115,1732389094797,-1000.0,0.0005577,2]
[343162116,1732389094807,-1000.0,0.0005577,2]
[343162117,1732389094818,-1000.0,0.0005577,2]
[343162118,1732389094828,-1000.0,0.0005577,2]
[343162119,1732389094839,-1000.0,0.0005577,2]
[343162120,1732389094849,-1000.0,0.0005577,2]
[343162121,1732389094859,-1000.0,0.0005577,2]
[343162122,1732389094868,-1000.0,0.0005577,2]
[343162123,1732389094878,-156.636874,0.0005577,120]
[343162124,1732389094887,-1000.0,0.0005577,2]
[343162125,1732389094898,-1000.0,0.0005577,2]
[343162126,1732389094909,-1000.0,0.0005577,2]
[343162127,1732389094919,-1000.0,0.0005577,2]
[343162128,1732389094928,-1000.0,0.0005577,2]
[343162129,1732389094938,-1000.0,0.0005577,2]
[343162130,1732389094948,-1000.0,0.0005577,2]
[343162131,1732389094958,-1000.0,0.0005577,2]
[343162132,1732389094968,-1000.0,0.0005577,2]
[343162133,1732389094978,-1000.0,0.0005577,2]
[343162134,1732389094992,-1000.0,0.0005577,2]
[343162135,1732389095002,-1000.0,0.0005577,2]
[343162136,1732389095012,-1000.0,0.0005577,2]
[343162137,1732389095022,-1000.0,0.0005577,2]
[343162138,1732389095032,-1000.0,0.0005577,2]
[343162139,1732389095042,-642.24600203,0.0005577,2]
[343162140,1732389095051,-240.625105,0.0005577,120]
[343162141,1732389095061,-240.625105,0.0005577,120]
[343162142,1732389095074,-151.0,0.0005577,120]
[343162143,1732389095083,-151.0,0.0005577,120]
[343162144,1732389095093,-167.376593,0.0005577,120]
[343162145,1732389095103,-200.0,0.0005577,15]
[343162146,1732389095112,-151.0,0.0005577,120]
[343162147,1732389095123,-151.0,0.0005577,120]
[343162148,1732389095239,-151.0,0.0005577,120]
[343162149,1732389095260,-151.0,0.0005577,120]
[343162150,1732389095271,-218.633121,0.0005577,110]
[343162151,1732389095281,-218.633121,0.0005577,110]
[343162152,1732389095291,-151.0,0.0005577,120]
[343162153,1732389095301,-432.096887,0.0005577,30]
[343162154,1732389095312,-432.096887,0.0005577,30]
[343162155,1732389095322,-241.004659,0.0005577,120]
[343162156,1732389095333,-241.004659,0.0005577,120]
[343162157,1732389095342,-151.0,0.0005577,120]
[343162158,1732389095352,-151.0,0.0005577,120]
[343162159,1732389095362,-151.0,0.0005577,120]
[343162160,1732389095372,-151.0,0.0005577,120]
[343162161,1732389095382,-151.0,0.0005577,120]
[343162162,1732389095392,-165.753456,0.0005577,120]
[343162163,1732389095402,-151.0,0.0005577,120]
[343162164,1732389095413,-151.0,0.0005577,120]
[343162165,1732389095424,-813.605447,0.0005577,120]
[343162166,1732389095441,-332.281826,0.0005577,120]
[343162167,1732389095451,-813.605447,0.0005577,120]
[343162168,1732389095462,-332.281826,0.0005577,120]
[343162169,1732389095472,-229.043883,0.0005577,120]
[343162170,1732389095483,-229.043883,0.0005577,120]
[343162171,1732389095494,-229.043883,0.0005577,120]
[343162172,1732389095505,-229.043883,0.0005577,120]
[343162173,1732389095515,-161.338612,0.0005577,120]
[343162174,1732389095526,-151.0,0.0005577,120]
[343162175,1732389095536,-182.694449,0.0005577,120]
[343162176,1732389095545,-189.392812,0.0005577,120]
[343162177,1732389095555,-278.239705,0.0005577,120]
[343162178,1732389095565,-182.694449,0.0005577,120]
[343162179,1732389095576,-189.392812,0.0005577,120]
[343162180,1732389095585,-202.70913,0.0005577,120]
[343162181,1732389095595,-202.70913,0.0005577,120]
[343162182,1732389095604,-202.70913,0.0005577,120]
[343162183,1732389095613,-202.70913,0.0005577,120]
[343162184,1732389095623,-151.0,0.0005577,120]
[343162185,1732389095632,-327.981952,0.0005577,120]
[343162186,1732389095642,-327.981952,0.0005577,120]
[343162187,1732389095651,-327.981952,0.0005577,120]
[343162188,1732389095663,-327.981952,0.0005577,120]
[343162189,1732389095671,-500.0,0.0005577,2]
[343162190,1732389095681,-157.3949,0.0005577,2]
[343162191,1732389095692,-404723.2512,0.0005577,2]
[343162192,1732389095704,-27689.5528,0.0005577,2]
[343162193,1732389095714,-15331.164,0.0005577,2]
[343162194,1732389095724,-37934.2973,0.0005577,2]
[343162195,1732389095735,-1667.1605,0.0005577,2]
[343162196,1732389095746,-100000.0,0.0005577,2]
[343162197,1732389095755,-500.0,0.00055771,120]
[343162198,1732389095766,-500.0,0.00055771,120]
[343162199,1732389095775,-318.67,0.00055771,120]
[343162200,1732389095785,-500.0,0.00055771,120]
[343162201,1732389095795,-543.76,0.00055771,120]
[343162202,1732389095804,-187.65,0.00055771,120]
[343162203,1732389095814,-500.0,0.00055771,120]
[343162204,1732389095824,-302.56,0.00055771,120]
[343162205,1732389095833,-228.55426855,0.00055771,120]
[343162206,1732389095843,-656.31,0.00055771,120]
[343162207,1732389095853,-500.0,0.00055771,120]
[343162208,1732389095863,-500.0,0.00055771,120]
[343162209,1732389095872,-168.0,0.00055771,120]
[343162210,1732389095883,-577.44,0.00055771,120]
[343162211,1732389095892,-500.0,0.00055771,120]
[343162212,1732389095902,-609.3,0.00055771,120]
[343162213,1732389095914,-500.0,0.00055771,120]
[343162214,1732389095924,-1324.03,0.00055771,120]
[343162215,1732389095933,-1200.79,0.00055771,120]
[343162216,1732389095944,-500.0,0.00055771,120]
[343162217,1732389095953,-500.0,0.00055771,120]
[343162218,1732389095963,-1803.76,0.00055771,120]
[343162219,1732389095974,-1486.62,0.00055771,120]
[343162220,1732389095985,-1278.68,0.00055771,120]
[343162221,1732389095996,-500.0,0.00055771,120]
[343162222,1732389096008,-1227.87,0.00055771,120]
[343162223,1732389096018,-1339.52,0.00055771,120]
[343162224,1732389096029,-500.0,0.00055771,120]
[343162225,1732389096038,-500.0,0.00055771,54]
[343162226,1732389096048,-1360.17,0.00055771,120]
[343162227,1732389096059,-500.0,0.00055771,120]
[343162228,1732389096068,-500.0,0.00055771,120]
[343162229,1732389096081,-500.0,0.00055771,120]
[343162230,1732389096093,-500.0,0.00055771,120]
[343162231,1732389096102,-402.67,0.00055771,120]
[343162232,1732389096113,-762.84,0.00055771,120]
[343162233,1732389096123,-1009.83,0.00055771,120]
[343162234,1732389096134,-500.0,0.00055771,120]
[343162235,1732389096145,-500.0,0.00055771,120]
[343162236,1732389096156,-836.17,0.00055771,120]
[343162237,1732389096165,-500.0,0.00055771,120]
[343162238,1732389096175,-1293.77,0.00055771,120]
[343162239,1732389096185,-531.72,0.00055771,120]
[343162240,1732389096194,-500.0,0.00055771,120]
[343162241,1732389096204,-500.0,0.00055771,120]
[343162242,1732389096213,-500.0,0.00055771,30]
[343162243,1732389096223,-500.0,0.00055771,120]
[343162244,1732389096232,-500.0,0.00055771,120]
[343162245,1732389096242,-500.0,0.00055771,120]
[343162246,1732389096251,-500.0,0.00055771,120]
[343162247,1732389096261,-500.0,0.00055771,120]
[343162248,1732389096271,-151.0,0.00055772,120]
[343162249,1732389096280,-151.0,0.00055772,120]
[343162250,1732389096290,-151.0,0.00055772,120]
[343162251,1732389096299,-151.0,0.00055772,120]
[343162252,1732389096309,-151.0,0.00055772,120]
[343162253,1732389096318,-467.445494,0.00055772,120]
[343162254,1732389096328,-467.445494,0.00055772,120]
[343162255,1732389096337,-151.0,0.00055772,120]
[343162256,1732389096346,-151.0,0.00055772,120]
[343162257,1732389096355,-169.15571,0.00055772,120]
[343162258,1732389096365,-169.15571,0.00055772,120]
[343162259,1732389096374,-151.0,0.00055772,120]
[343162260,1732389096383,-151.0,0.00055772,120]
[343162261,1732389096393,-151.0,0.00055772,120]
[343162262,1732389096403,-151.0,0.00055772,120]
[343162263,1732389096414,-240.625105,0.00055772,120]
[343162264,1732389096424,-240.625105,0.00055772,120]
[343162265,1732389096433,-151.0,0.00055772,120]
[343162266,1732389096443,-151.0,0.00055772,120]
[343162267,1732389096452,-151.0,0.00055772,120]
[343162268,1732389096462,-18904.4731213,0.0005578,2]
[343162269,1732389096471,-7191.5594704,0.0005578,2]
[343162270,1732389096480,-151.0,0.0005578,120]
[343162271,1732389096490,-182.694449,0.0005578,120]
[343162272,1732389096499,-189.392812,0.0005578,120]
[343162273,1732389096509,-182.694444,0.0005578,120]
[343162274,1732389096519,-189.392817,0.0005578,120]
[343162275,1732389096528,-151.0,0.0005578,120]
[343162276,1732389096538,-1000.0,0.0005578,27]
[343162277,1732389096547,-150.0,0.00055788,14]
[343162278,1732389096557,-150.0,0.00055791,14]
[343162279,1732389096566,-150.0,0.00055799,14]
[343162280,1732389096576,-1333.0,0.000558,20]
[343162281,1732389096585,-1000.0,0.000558,27]
[343162282,1732389096595,-1000.0,0.0005582,27]
[343162283,1732389096604,-150.0,0.00055822,14]
[343162284,1732389096613,-1604.93659282,0.0005583,30]
[343162285,1732389096622,-150.0,0.00055833,14]
[343162286,1732389096631,-1000.0,0.0005584,27]
[343162287,1732389096640,-1356.048773,0.0005584,27]
[343162288,1732389096650,-150.0,0.00055841,14]
[343162289,1732389096660,-151.0,0.00055851,120]
[343162290,1732389096670,-151.0,0.00055851,120]
[343162291,1732389096680,-151.0,0.00055851,120]
[343162292,1732389096689,-151.0,0.00055851,120]
[343162293,1732389096698,-151.0,0.00055851,120]
[343162294,1732389096707,-151.0,0.00055851,120]
[343162295,1732389096717,-813.605447,0.00055851,120]
[343162296,1732389096726,-332.281826,0.00055851,120]
[343162297,1732389096736,-813.605447,0.00055851,120]
[343162298,1732389096745,-332.281826,0.00055851,120]
[343162299,1732389096755,-229.043883,0.00055851,120]
[343162300,1732389096764,-229.043888,0.00055851,120]
[343162301,1732389096774,-202.70913,0.00055851,120]
[343162302,1732389096784,-202.70912,0.00055851,120]
[343162303,1732389096793,-327.981952,0.00055851,120]
[343162304,1732389096802,-327.981958,0.00055851,120]
[343162305,1732389096812,-150.0,0.00055859,14]
[343162306,1732389096821,-150.0,0.00055859,30]
[343162307,1732389096830,-150.0,0.0005586,14]
[343162308,1732389096840,-1000.0,0.0005586,27]
[343162309,1732389096849,-1000.0,0.0005586,27]
[343162310,1732389096858,-526.0,0.00055863,120]
[343162311,1732389096867,-1572.78,0.00055868,120]
[343162312,1732389096876,-938.06,0.00055868,120]
[343162313,1732389096886,-500.0,0.00055868,120]
[343162314,1732389096895,-504.66,0.00055868,120]
[343162315,1732389096904,-500.0,0.00055868,120]
[343162316,1732389096917,-500.0,0.00055868,21]
[343162317,1732389096926,-153.705631,0.00055868,120]
[343162318,1732389096935,-503.12,0.00055868,120]
[343162319,1732389096945,-500.0,0.00055868,120]
[343162320,1732389096955,-500.0,0.00055868,120]
[343162321,1732389096964,-781.19,0.00055868,120]
[343162322,1732389096974,-1494.48,0.00055868,120]
[343162323,1732389096986,-611.48,0.00055868,120]
[343162324,1732389096996,-687.21,0.00055868,120]
[343162325,1732389097005,-500.0,0.00055868,120]
[343162326,1732389097015,-500.0,0.00055868,120]
[343162327,1732389097024,-500.0,0.00055868,120]
[343162328,1732389097035,-500.0,0.00055869,120]
[343162329,1732389097045,-500.0,0.00055869,120]
[343162330,1732389097054,-500.0,0.00055869,120]
[343162331,1732389097064,-447.86598147,0.00055869,120]
[343162332,1732389097075,-500.0,0.00055869,120]
[343162333,1732389097084,-500.0,0.00055869,120]
[343162334,1732389097094,-500.0,0.00055869,120]
[343162335,1732389097103,-500.0,0.00055869,120]
[343162336,1732389097112,-582.44,0.00055869,120]
[343162337,1732389097122,-500.0,0.00055869,120]
[343162338,1732389097131,-881.69,0.00055869,120]
[343162339,1732389097141,-500.0,0.00055869,120]
[343162340,1732389097150,-563.31,0.00055869,120]
[343162341,1732389097162,-500.0,0.00055869,120]
[343162342,1732389097172,-500.0,0.00055869,120]
[343162343,1732389097182,-151.0,0.00055869,120]
[343162344,1732389097191,-151.0,0.00055869,120]
[343162345,1732389097202,-500.0,0.00055869,120]
[343162346,1732389097212,-231.762559,0.00055869,120]
[343162347,1732389097222,-828.16,0.00055869,120]
[343162348,1732389097231,-500.0,0.00055869,120]
[343162349,1732389097241,-500.0,0.00055869,120]
[343162350,1732389097250,-218.633121,0.00055869,110]
[343162351,1732389097260,-218.633121,0.00055869,110]
[343162352,1732389097269,-150.0,0.00055869,14]
[343162353,1732389097279,-151.0,0.00055869,120]
[343162354,1732389097288,-432.096887,0.00055869,30]
[343162355,1732389097298,-500.0,0.00055869,120]
[343162356,1732389097308,-432.096887,0.00055869,30]
[343162357,1732389097317,-500.0,0.00055869,120]
[343162358,1732389097327,-241.004659,0.00055869,120]
[343162359,1732389097337,-241.004659,0.00055869,120]
[343162360,1732389097347,-656.31,0.00055869,120]
[343162361,1732389097356,-500.0,0.00055869,120]
[343162362,1732389097366,-500.0,0.00055869,120]
[343162363,1732389097375,-403.76,0.00055869,120]
[343162364,1732389097385,-168.0,0.00055869,120]
[343162365,1732389097395,-583.94,0.00055869,120]
[343162366,1732389097405,-577.44,0.00055869,120]
[343162367,1732389097416,-500.0,0.00055869,120]
[343162368,1732389097426,-609.3,0.00055869,120]
[343162369,1732389097435,-500.0,0.00055869,120]
[343162370,1732389097446,-1324.03,0.00055869,120]
[343162371,1732389097456,-1200.79,0.00055869,120]
[343162372,1732389097465,-500.0,0.00055869,120]
[343162373,1732389097475,-500.0,0.00055869,120]
[343162374,1732389097484,-771.94,0.00055869,120]
[343162375,1732389097493,-1803.76,0.00055869,120]
[343162376,1732389097503,-1486.62,0.00055869,120]
[343162377,1732389097512,-1278.68,0.00055869,120]
[343162378,1732389097522,-500.0,0.00055869,120]
[343162379,1732389097532,-1227.87,0.00055869,120]
[343162380,1732389097541,-1097.97,0.00055869,120]
[343162381,1732389097551,-1339.52,0.00055869,120]
[343162382,1732389097560,-500.0,0.00055869,120]
[343162383,1732389097570,-500.0,0.00055869,120]
[343162384,1732389097580,-1572.78,0.00055869,120]
[343162385,1732389097590,-500.0,0.00055869,54]
[343162386,1732389097599,-1360.17,0.00055869,120]
[343162387,1732389097609,-938.06,0.00055869,120]
[343162388,1732389097619,-500.0,0.00055869,120]
[343162389,1732389097628,-504.66,0.00055869,120]
[343162390,1732389097638,-500.0,0.00055869,120]
[343162391,1732389097647,-500.0,0.00055869,120]
[343162392,1732389097657,-500.0,0.00055869,120]
[343162393,1732389097667,-316.13661596,0.00055869,120]
[343162394,1732389097677,-500.0,0.00055869,21]
[343162395,1732389097686,-500.0,0.00055869,120]
[343162396,1732389097696,-500.0,0.00055869,120]
[343162397,1732389097707,-503.12,0.00055869,120]
[343162398,1732389097716,-762.84,0.00055869,120]
[343162399,1732389097726,-1009.83,0.00055869,120]
[343162400,1732389097735,-500.0,0.00055869,120]
[343162401,1732389097745,-500.0,0.00055869,120]
[343162402,1732389097754,-500.0,0.00055869,120]
[343162403,1732389097764,-500.0,0.00055869,120]
[343162404,1732389097772,-836.17,0.00055869,120]